Cogmind - Beta 17.1 @@@ ROGUE MODE // 2026.08.30 @ 22:00:56 Player: Trione Result: Destroyed by ZX-D0Q(R) with Subdweller Laser Performance ------------- Evolutions (0) 0 Regions Visited (2) 400 Robots Destroyed (34) 170 Value Destroyed (693) 693 Prototype IDs (2) 40 Alien Tech Used (0) 0 Bonus (0) 0 TOTAL SCORE: 1303 Bonus ------- None Cogmind --------- Core Integrity 0/250 Matter 280/300 Energy 90/100 System Corruption 0% Temperature Cool (6) Movement Core (500) Ox9 Location -10/Subcaves Parts ------- > --- POWER (1) -------- (None) > --- PROPULSION (2) --- (None) > --- UTILITY (2) ------ Heat Sink Large Storage Unit > --- WEAPON (2) ------- Beam Cannon Subdweller Machine Gun > --- INVENTORY (15) --- Ion Engine Ion Engine Huge Storage Unit Large Matter Pod (150) Seismic Detector EM Pulse Gun Beam Cannon Beam Cannon Beam Cannon Assault Rifle Shotgun Light Cannon Light Cannon Datajack Mining Claw Peak State ------------ > --- POWER ------------ Ion Engine > --- PROPULSION ------- Light Treads Wheel > --- UTILITY ---------- Heat Sink Large Storage Unit > --- WEAPON ----------- Beam Cannon Shotgun > --- INVENTORY -------- Ion Engine Ion Engine Light Treads Huge Storage Unit Large Matter Pod Seismic Detector EM Pulse Gun Beam Cannon Beam Cannon Beam Cannon Beam Cannon Assault Rifle Shotgun Datajack Mining Claw [Rating: 9] Favorites ----------- Power Ion Engine Engine Ion Engine Propulsion Light Treads Treads Light Treads Wheel Wheel Utility Heat Sink Device Heat Sink Storage Large Storage Unit Protection Light Armor Plating Weapon Beam Cannon Energy Gun Medium Laser Energy Cannon Beam Cannon Ballistic Gun Light Assault Rifle Ballistic Cannon Light Cannon Slashing Weapon Mining Claw Build | -11 -10 -10 ------- Run | Yrd Mat Sub Slots Evolved . | . . . Power . | . . . Propulsion . | . . . Utility . | . . . Weapon . | . . . Parts Attached 26 | 7 15 4 Power 3 | 1 2 . Engine 3 | 1 2 . Core . | . . . Reactor . | . . . Propulsion 5 | 2 2 1 Treads 3 | 1 1 1 Leg . | . . . Wheel 2 | 1 1 . Hover . | . . . Flight . | . . . Utility 6 | 2 4 . Device 2 | 1 1 . Storage 3 | 1 2 . Processor . | . . . Hackware . | . . . Protection 1 | . 1 . Artifact . | . . . Weapon 12 | 2 7 3 Energy Gun 2 | 2 . . Energy Cannon 3 | . 2 1 Ballistic Gun 5 | . 4 1 Ballistic Cannon 1 | . 1 . Launcher . | . . . Special Weapon . | . . . Impact Weapon . | . . . Slashing Weapon 1 | . . 1 Piercing Weapon . | . . . Special Melee Weapon . | . . . Unidentified Prototypes . | . . . Parts Lost 6 | . 2 4 Power 2 | . 1 1 Propulsion 3 | . . 3 Utility 1 | . 1 . Weapon . | . . . Highest Loss Streak 3 | . 1 3 To Critical Strikes . | . . . Average Backups 11 | 5 10 14 Power 1 | 1 1 1 Propulsion 1 | 3 1 . Utility 2 | . 3 3 Weapon 5 | . 4 8 Tool/Special . | . . . Unused Backups 14 | 1 5 8 Power 2 | . . 2 Propulsion 3 | 1 2 . Utility 2 | . 1 1 Weapon 6 | . 2 4 Tool/Special 1 | . . 1 Average Slot Usage (%) 99 | . 99 99 Engine 13 | . 14 13 Treads 17 | . 14 24 Wheel 10 | . 14 2 Device 11 | . 10 14 Storage 14 | . 14 14 Protection 1 | . 2 . Energy Gun 3 | . 5 . Energy Cannon 14 | . 15 13 Ballistic Gun 4 | . 5 1 Ballistic Cannon 3 | . 2 5 Slashing Weapon 2 | . . 7 Peak Build Rating 9 | 8 9 9 Average Rating 7 | 5 7 7 On Entrance 5 | . 8 8 Avg Prop Armor Cover (%) 11 | 15 11 11 Naked Turns . | . . . Heaviest Build 90 | 13 90 33 Greatest Support 40 | 20 20 40 Greatest Overweight (x) 8 | . 8 3 Average Overweight (x) 1 | . 1 . Largest Inventory Capacity 25 | 8 25 15 Average Capacity 12 | 7 11 15 Most Carried 15 | 8 15 15 Average Carried 11 | 5 10 14 Final Capacity 15 | 8 15 15 Final Carried 15 | 8 15 15 Class Distribution -------------------- 94% | Mutant 5% | Scavenger-Mutant Dominant Class ---------------- Mutant | -10/Materials Mutant | -10/Subcaves Resources | -11 -10 -10 ----------- Run | Yrd Mat Sub Matter Collected 759 | 270 407 82 Remotely . | . . . Salvage Created 1067 | 123 841 103 Parts 78 | 9 66 3 Haulers Intercepted 2 | . 2 . Recyclers Shooed 1 | . 1 . Parts Field Recycled . | . . . Retrieved Matter . | . . . Parts Self-Destructed . | . . . Prevented . | . . . Parts Restored . | . . . Kills | -11 -10 -10 ------- Run | Yrd Mat Sub Combat Hostiles Destroyed 23 | . 20 3 Guns 15 | . 14 1 Cannons 8 | . 6 2 Classes Destroyed 10 | 2 7 1 Worker 1 | . 1 . Builder 1 | . 1 . Tunneler 3 | 2 1 . Hauler 2 | . 2 . Recycler 1 | 1 . . Operator 2 | . 2 . Watcher 1 | . 1 . Swarmer 8 | . 8 . Grunt 12 | . 12 . Subdweller 3 | . . 3 Best Kill Streak 4 | 2 4 2 Combat Bots Only 4 | . 4 2 Max Kills in Single Turn 2 | 1 2 1 Gunslinging 1 | . 1 . Exploded . | . . . Melee . | . . . Uniques/NPCs Destroyed . | . . . Combat | -11 -10 -10 -------- Run | Yrd Mat Sub Hostile Shots Fired 110 | . 72 38 Missed 27 | . 20 7 Hits 83 | . 52 31 Projectile 83 | . 52 31 Critical Strikes 1 | . . 1 Damage Taken 1147 | . 486 661 Core 271 | . 73 198 Absorbed by Shields . | . . . Core Remaining (%) 100 | 100 . . Volleys Fired 111 | 7 86 18 Largest 2 | 1 2 2 Hottest 120 | 50 120 90 Shots Fired 202 | 7 159 36 Gun 132 | 7 111 14 Cannon 70 | . 48 22 Launcher . | . . . Special . | . . . Kinetic 81 | . 61 20 Thermal 121 | 7 98 16 Explosive . | . . . Electromagnetic . | . . . Robot Hit Streak 9 | 6 8 9 Robot Miss Streak 4 | 1 4 2 Penetration Max . | . . . Secondary Targets 2 | . 2 . Max Gunslinging Chain 1 | . 1 . Shots Hit Robots 128 | 6 94 28 Core Hits 53 | 4 42 7 Critical Kills . | . . . Critical Parts Destroyed . | . . . Critical Strikes 3 | . 3 . Burn 3 | . 3 . Melee Attacks 14 | . . 14 Impact . | . . . Slashing 14 | . . 14 Piercing . | . . . Sneak Attacks 1 | . . 1 Combat Hostiles . | . . . Follow-up Attacks . | . . . Damage Inflicted 1759 | 74 1198 487 Guns 973 | 74 690 209 Cannons 739 | . 508 231 Explosions . | . . . Melee 47 | . . 47 Ramming . | . . . Kinetic 567 | . 301 266 Thermal 1145 | 74 897 174 Explosive . | . . . Electromagnetic . | . . . Impact . | . . . Slashing 47 | . . 47 Piercing . | . . . Highest Corruption . | . . . Average Corruption . | . . . Corruption Purged . | . . . Corruption Blocked . | . . . Overload Shots . | . . . Overflow Damage 6 | . 6 . Projectiles 6 | . 6 . Explosions . | . . . Melee . | . . . Knockbacks . | . . . Impact . | . . . Kinetic . | . . . Secondary . | . . . Self-Inflicted Damage . | . . . Shots . | . . . Rammed . | . . . Targets Rammed . | . . . Kicked . | . . . Crushed . | . . . Highest Temperature 166 | 10 166 . Average Temperature 52 | 7 52 . Received Heat Transfer 294 | . 138 156 Siege Activations . | . . . Martial Activations . | . . . Shielding Activations . | . . . Robots Disrupted . | . . . Combat Hostiles . | . . . Robots Corrupted . | . . . Combat Hostiles . | . . . Parts Fried . | . . . Impact Corruptions . | . . . Robots Melted . | . . . Combat Hostiles . | . . . Parts Melted 1 | . 1 . Heat Transferred 3034 | 222 2442 370 Parts Sabotaged . | . . . Parts Stolen . | . . . Parts Stripped . | . . . Power Chain Reactions . | . . . Alert | -11 -10 -10 ------- Run | Yrd Mat Sub Maximum Alert Level 1 | . 1 . Low Security (%) 30 | 100 24 . Level 1 69 | . 75 . Level 2 . | . . . Level 3 . | . . . Level 4 . | . . . Level 5 . | . . . High Security . | . . . Max Security . | . . . Peak Influence 343 | 5 343 . Initial . | . . . Average 206 | . 225 . Influence Increases 725 | 15 710 . Destroy 0b10 Robot/C 400 | . 400 . Destroy 0b10 Robot/NC 55 | 15 40 . Destroy Leader 86 | . 86 . Successful Hack 33 | . 33 . Select Force Hacks 30 | . 30 . Destroy Structure 1 | . 1 . Lose Combat Pursuer 120 | . 120 . Influence Decreases 725 | 15 504 206 Entered New Map 100 | . . 100 Time Decay 595 | 15 484 96 Lost Part 30 | . 20 10 Squads Dispatched 5 | . 5 . Investigation 3 | . 3 . Extermination . | . . . Reinforcement 2 | . 2 . Assault . | . . . Garrison . | . . . Intercept . | . . . Searches Triggered . | . . . Construction Impeded . | . . . Haulers Reinforced . | . . . Active Scanning Responses . | . . . Cargo Convoy Interrupts . | . . . Stealth | -11 -10 -10 --------- Run | Yrd Mat Sub Distress Signals 5 | . 5 . Communications Jammed . | . . . Distress Signals . | . . . Times Spotted 42 | . 38 4 Peak Tracking Total 6 | . 6 2 Tactical Retreats 6 | . 6 . Traps | -11 -10 -10 ------- Run | Yrd Mat Sub Traps Triggered 2 | . 2 . Indirectly . | . . . Trap Hack Attempts . | . . . Triggered . | . . . Disarmed . | . . . Reprogrammed . | . . . Reused . | . . . Traps Extracted . | . . . Installed . | . . . Triggered . | . . . Machines | -11 -10 -10 ---------- Run | Yrd Mat Sub Machines Disabled . | . . . Max in Single Turn . | . . . Machines Repaired . | . . . Machines Dismantled . | . . . Machines Sabotaged . | . . . Overloaded Fab Kills . | . . . Hacking | -11 -10 -10 --------- Run | Yrd Mat Sub Machines Accessed 7 | . 7 . Terminals 5 | . 5 . Fabricators . | . . . Repair Stations . | . . . Recycling Units 2 | . 2 . Scanalyzers . | . . . Garrison Access . | . . . Total Hacks 18 | . 18 . Successful 9 | . 9 . Failed 9 | . 9 . Catastrophic 1 | . 1 . Database Lockouts . | . . . Manual 14 | . 14 . Terminals 15 | . 15 . Fabricators . | . . . Repair Stations . | . . . Recycling Units 3 | . 3 . Scanalyzers . | . . . Garrison Access . | . . . Terminal Hacks 4 | . 4 . Prototype ID Bank 1 | . 1 . Branch Access Points 1 | . 1 . Terminal Index 1 | . 1 . Locate Traps 1 | . 1 . Fabricator Hacks . | . . . Repair Station Hacks . | . . . Recycling Unit Hacks . | . . . Scanalyzer . | . . . Garrison Access Hacks . | . . . Unauthorized Hacks 5 | . 5 . Terminals 4 | . 4 . Track 1 | . 1 . Botnet 2 | . 2 . Operators 1 | . 1 . Fabricators . | . . . Repair Stations . | . . . Recycling Units 1 | . 1 . Tunnel 1 | . 1 . Scanalyzers . | . . . Garrison Access . | . . . Data Cores Recovered . | . . . Used . | . . . Hacking Detections 6 | . 6 . Full Trace Events . | . . . Feedback Events . | . . . Feedback Blocked . | . . . Robot Schematics Acquired . | . . . Robots Built . | . . . Authchips . | . . . Time . | . . . Total Robot Build Rating . | . . . Part Schematics Acquired . | . . . Parts Built . | . . . Authchips . | . . . Time . | . . . Total Part Build Rating . | . . . Part Studies Acquired . | . . . Parts Repaired . | . . . Time . | . . . Parts Recycled . | . . . Recycled Matter . | . . . Retrieved Matter . | . . . Retrieved Components . | . . . Parts Scanalyzed . | . . . Part Schematics Acquired . | . . . Parts Damaged . | . . . Bothacking | -11 -10 -10 ------------ Run | Yrd Mat Sub Used RIF Installer . | . . . Robots Hacked . | . . . Non-combat . | . . . Combat . | . . . Robot Hacks Applied . | . . . Relay Couplers Released . | . . . Fabnet Peak Effective % . | . . . Robots Rewired . | . . . Allies Hacked . | . . . Hacks Repelled . | . . . Allies | -11 -10 -10 -------- Run | Yrd Mat Sub Total Allies . | . . . Largest Group . | . . . Highest-Rated Group . | . . . Highest-Rated Ally . | . . . Total Orders . | . . . Ally Attacks . | . . . Total Damage . | . . . Kills . | . . . Allies Corrupted . | . . . Allies Melted . | . . . Intel | -11 -10 -10 ------- Run | Yrd Mat Sub Active Infowar (turns) 144 | 48 72 24 Seismic 144 | 48 72 24 Robot Analysis Total . | . . . Derelict Logs Recovered 1 | . . 1 Drone Launches . | . . . Drone Recoveries . | . . . Exploration | -11 -10 -10 ------------- Run | Yrd Mat Sub Turns Passed 2077 | 121 1310 646 Spaces Moved 1231 | 88 793 350 Core 3 | 3 . . Treads 345 | 2 69 274 Legs . | . . . Wheels 883 | 83 724 76 Hover . | . . . Flight . | . . . Fastest Speed 50 | 50 95 125 Average Speed 126 | 99 118 152 Slowest Speed 240 | 160 240 240 Overloaded Moves . | . . . Propulsion Burnouts . | . . . Robots Hopped . | . . . Potential Cave-ins . | . . . Cave-ins Triggered . | . . . Exploration Rate (%) 36 | 5 93 11 Regions Visited 2 Branch Regions 1 Pre-discovered Areas 1 | . 1 . Known Exits Taken . | . . . Unknown Exits Taken 2 | 1 1 . Scrap Searched 1 | . . 1 Spaces Dug 6 | . . 6 Terrain Destroyed 6 | . . 6 Melee 6 | . . 6 Projectile . | . . . AOE . | . . . Terrain Rammed . | . . . Walls Destroyed . | . . . Machines Disabled . | . . . Actions | -11 -10 -10 --------- Run | Yrd Mat Sub Total 1525 | 111 1018 396 Wait 88 | . 84 4 Move 1229 | 87 792 350 Hop . | . . . Pick Up 31 | 9 20 2 Fast Attach 8 | 7 1 . Attach 3 | . 2 1 Detach . | . . . Swap 22 | . 16 6 Drop 19 | 1 17 1 Fire 111 | 7 86 18 Melee 14 | . . 14 Ram . | . . . Kick . | . . . Crush . | . . . Escape Stasis . | . . . Rewire . | . . . Trap . | . . . Miscellaneous . | . . . Route ------- -11/Scrapyard -10/Materials (discovered 5 exits: [*Mat x2] / *Min x2 / [*Sub]) -10/Subcaves (discovered 1 exit: Rec) History --------- Turn | Location | Event 27 | -11/Scrapyard | Discovered new exit (range 16) 122 | -11/Scrapyard | Entered Materials 313 | -10/Materials | Build established: Mutant 496 | -10/Materials | Discovered new exit (range 10) 631 | -10/Materials | Identified exit to Mines 963 | -10/Materials | Discovered new exit (range 16) 1247 | -10/Materials | Discovered new exit (range 16) 1257 | -10/Materials | Discovered new exit (range 11) 1432 | -10/Materials | Entered Subcaves 1433 | -10/Subcaves | Approached by a straggling Scientist 1439 | -10/Subcaves | Identified exit to Recycling 1496 | -10/Subcaves | Shifting Twisted Machinery released Sub. Machine Gun 2009 | -10/Subcaves | Shifting Twisted Machinery released Mak. Laser 2047 | -10/Subcaves | Core integrity fell below 50% 2067 | -10/Subcaves | Core integrity fell below 20% 2078 | -10/Subcaves | Destroyed by ZX-D0Q(R) with Subdweller Laser Last Messages --------------- CJ-MEC(c): "I think it's somewhere northwest of here" 01747_ Acquired 8 matter. CJ-MEC(c): "I think it's somewhere northwest of here" 01831_ Searching scrap... 01831_ Found Sub. Optics. 01831_ Found 53 Matter. 01832_ Acquired 53 matter. 01838_ Subatomizers dissect the Sub. Optics. CJ-MEC(c): "I think it's somewhere northwest of here" 01863_ Subatomizers dissect the Sub. Optics. CJ-MEC(c): "I think it's somewhere northwest of here" 01965_ Acquired Ion Engine. 01975_ Sneak attack on YE-MV6(O). CJ-MEC(c): "I think it's somewhere north of here" Mak. Laser falls loose from the Twisted Machinery. CJ-MEC(c): "I think it's somewhere north of here" 02054_ Lgt. Treads destroyed. 02060_ Ion Engine destroyed. 02064_ ZK-8Y7(R) destroyed. 02072_ Lgt. Treads destroyed. Map ----- +----------------------------------------------------+ | ?????????????????????????????????????????????????? | | ?????????????????????????????????????????????????? | | ?????????????????????????????????????????????????? | | ?????????????????????????????????????????????????? | | ?????????????????????????????????????????????????? | | ?????????????????????????????????????????????????? | | ?????????????????????????????????????????????????? | | ?????????????????????????????????????????????????? | | ?????????????????????????????????????????????????? | | ?????????????????????????????????????????????????? | | ?????????????????????????????????????????????????? | | ?????????????????????????????????????????????????? | | ?????????????????????????????????????????????????? | | ?????????????????????""??????????????????????????? | | ?????????????????????" ??????????????????????????? | | ????????????????????"" #?????????????????????????? | | ????????????????#"??? ?????????????????????????? | | ????????????????" ?????????????????????????? | | ????????????????? ##???????????????????????? | | ?????????????????? "" #???????????????????????? | | ??????????????????? "" #???????????????????????? | | ????????????????????#" #???????????????????????? | | ?????????????????????# " ##??????????????????????? | | ????????????????????##" R%#??????????????????????? | | ????????????????????#"" #??????????????????????? | | ????????????????????#""" @#??????????????????????? | | ????????????????????## " ##??????????????????????? | | ?????????????????????##" #???????????????????????? | | ?????????????????????##" #???????????????????????? | | ?????????????????????# #???????????????????????? | | ?????????????????????## ##????####?####?????????? | | ?????????????????????## ##???# "###""####??????# | | ??????????????????#### #???# """"##"##?##### | | ??????????????????# ## ##??## """"""""#?# | | ??????????????????# #?# ##??##" "#"#"#### | | ??????????????????## #?## #???##" ""#" | | ???????????????????# ###" ##??##""" | | ???????????????????## " ""[##??#"" # # ###### | | ???????????????????## " #?## "" # #####????? | | ??????????????????## " ### "" # #????????? | | ??????????????????# " ## #### "# #????????? | | ??????????????????# " ## ##?## #????????? | | ??????????????????# ## #??## #????????? | | ??????????????????## ###### #????????? | | ???????????????????## ## #?# #????????? | | ????????????????????#### #?# #????????? | | ???????????????????????# ### ##???????? | | ???????????????????????# #### #???????? | | ??????????????????###### ##### #???????? | | ??????????????????# [& ### #???????? | +----------------------------------------------------+ Best States ------------- Heat Dissipation 35 Energy Generation 10 Energy Capacity 250 Matter Stores 300 Matter Capacity 300 Sight Range 16 Terrain Scan Density 10 Armor Coverage 150 Evasion (%) 41 Recoil Reduction 2 Item Schematics ----------------- None Robot Schematics ------------------ None Fabricated ------------ Nothing Repaired ---------- Nothing Studied --------- None Alien Tech Used ----------------- None Achievements -------------- None Challenges ------------ None Game ------ Seed GravjetCryofiberGenerator Manual? 0 Play Time 00:23:35 Cumulative 1375.1 hours Start 2026.08.30 @ 21:37:53 End 2026.08.30 @ 22:00:56 Sessions 1 Manual Loads 0 Difficulty Rogue Special Mode None Game No. 500 Rogue 500 Adventurer 0 Explorer 0 Win Type - Total 32 Types 16/2/8/0/0/0/6/0/0/0 Lore% 87 Gallery% 79 Achievement% 51 Wizard Run 0 Options --------- Layout 1 ASCII 0 Keyboard 0 Movement Vi Keybinds 0 Fullscreen 0 Font 14/CherryShadow Map View 64x42 Zoom Use 0% Tactical HUD 1 Map Filters NONE Filters NONE Steam 1 RUN: 0d288e2e-a5d3-4121-9561-dd9249f4d1c8